fUST/lending_fUST_20240703
["ID","MTS","AMOUNT","RATE_DAILY","PERIOD"]
[330994724,1719997143119,500.0,0.00014,2]
[330994725,1719997144043,500.0,0.00014,2]
[330994726,1719997147540,500.0,0.00014,2]
[330994727,1719997149456,594.95,0.00014,2]
[330994728,1719997149619,500.0,0.00014,2]
[330994729,1719997159703,500.0,0.00014,2]
[330994730,1719997169055,673.01,0.00014,2]
[330994731,1719997172532,500.0,0.00014,2]
[330994735,1719997180410,500.0,0.00014,2]
[330994737,1719997187652,500.0,0.00014,2]
[330994738,1719997197124,500.0,0.00014,2]
[330994739,1719997201826,675.67,0.00014,2]
[330994740,1719997204608,9576.09,0.00014,2]
[330994741,1719997219157,500.0,0.00014,2]
[330994742,1719997225116,500.0,0.00014,2]
[330994743,1719997225196,500.0,0.00014,2]
[330994744,1719997227359,500.0,0.00014,2]
[330994745,1719997229837,500.0,0.00014,2]
[330994746,1719997236827,500.0,0.00014,2]
[330994747,1719997247178,500.0,0.00014,2]
[330994749,1719997247874,500.29451331,0.00014,2]
[330994750,1719997254962,514.29,0.00014,2]
[330994751,1719997258867,500.0,0.00014,2]
[330994752,1719997261818,500.0,0.00014,2]
[330994753,1719997261971,500.0,0.00014,2]
[330994754,1719997272969,500.0,0.00014,2]
[330994755,1719997277078,644.97,0.00014,2]
[330994756,1719997286274,647.52,0.00014,2]
[330994757,1719997297623,500.0,0.00014,2]
[330994758,1719997313112,1705.67,0.00014,2]
[330994759,1719997314935,9177.09,0.00014,2]
[330994760,1719997315334,500.0,0.00014,2]
[330994761,1719997320193,500.0,0.00014,2]
[330994763,1719997324182,500.0,0.00014,2]
[330994768,1719997337829,592.34,0.00014,2]
[330994769,1719997338946,1393.96,0.00014,2]
[330994770,1719997356772,500.0,0.00014,2]
[330994775,1719997367698,500.0,0.00014,2]
[330994776,1719997369572,500.0,0.00014,2]
[330994777,1719997375306,4715.94,0.00014,2]
[330994788,1719997391372,500.0,0.00014,2]
[330994789,1719997404611,500.0,0.00014,2]
[330994791,1719997433332,500.0,0.00014,2]
[330994795,1719997461853,941.37,0.00014,2]
[330994799,1719997510247,507.25244306,0.00014,2]
[330994800,1719997510287,500.0,0.00014,2]
[330994801,1719997517455,4938.0,0.00014,2]
[330994802,1719997524693,500.0,0.00014,2]
[330994804,1719997571653,1634.6,0.00014,2]
[330994805,1719997577414,625.58,0.00014,2]
[330994806,1719997580828,909.03,0.00014,2]
[330994807,1719997601566,1335.87,0.00014,2]
[330994808,1719997604059,500.0,0.00014,2]
[330994809,1719997612100,4732.25,0.00014,2]
[330994810,1719997631161,-153.22760111,0.00014001,2]
[330994811,1719997631181,-500.0,0.00014001,2]
[330994812,1719997631203,-744.28,0.00014001,2]
[330994813,1719997631225,-500.0,0.00014001,2]
[330994814,1719997631246,-500.0,0.00014001,2]
[330994815,1719997631272,-568.72,0.00014001,2]
[330994816,1719997631295,-500.0,0.00014001,2]
[330994817,1719997631315,-500.0,0.00014001,2]
[330994818,1719997631337,-669.96,0.00014001,2]
[330994819,1719997631358,-500.0,0.00014001,2]
[330994820,1719997631378,-500.0,0.00014001,2]
[330994821,1719997631398,-500.0,0.00014001,2]
[330994822,1719997631418,-555.81,0.00014001,2]
[330994823,1719997631439,-790.9,0.00014001,2]
[330994824,1719997631460,-500.0,0.00014001,2]
[330994825,1719997631490,-500.0,0.00014001,2]
[330994826,1719997631511,-500.0,0.00014001,2]
[330994827,1719997631532,-500.0,0.00014001,2]
[330994828,1719997631552,-500.0,0.00014001,2]
[330994829,1719997631574,-8298.11,0.00014001,2]
[330994830,1719997631594,-500.0,0.00014001,2]
[330994831,1719997631614,-2912.79,0.00014001,2]
[330994832,1719997631633,-150.0,0.00014089,2]
[330994833,1719997631654,-877.0,0.00014089,2]
[330994834,1719997631675,-500.0,0.00014117,2]
[330994835,1719997631695,-506.23773556,0.00014173,2]
[330994836,1719997631716,-500.0,0.00014272,2]
[330994837,1719997631736,-500.0,0.00014272,2]
[330994838,1719997631756,-500.0,0.00014272,2]
[330994839,1719997631775,-500.0,0.00014272,2]
[330994840,1719997631799,-500.0,0.00014272,2]
[330994841,1719997631820,-634.78,0.00014272,2]
[330994842,1719997631840,-500.0,0.00014272,2]
[330994843,1719997631861,-1243.43,0.00014272,2]
[330994844,1719997631882,-1399.96,0.00014272,2]
[330994845,1719997631907,-673.4,0.00014272,2]
[330994846,1719997631928,-500.0,0.00014272,2]
[330994847,1719997631950,-500.0,0.00014272,2]
[330994848,1719997631970,-500.0,0.00014272,2]
[330994849,1719997631994,-584.29,0.00014272,2]
[330994850,1719997632015,-500.0,0.00014272,2]
[330994851,1719997632038,-1762.31,0.00014272,2]
[330994852,1719997632060,-6053.87,0.00014272,2]
[330994853,1719997632082,-712.88,0.00014272,2]
[330994854,1719997632102,-500.0,0.00014272,2]
[330994855,1719997632124,-1323.35,0.00014272,2]
[330994856,1719997632146,-644.5,0.00014273,2]
[330994857,1719997632166,-1133.24,0.00014273,2]
[330994858,1719997632188,-4859.47,0.00014273,2]
[330994859,1719997632209,-580.01,0.00014273,2]
[330994860,1719997632230,-659.56,0.00014273,2]
[330994861,1719997632250,-799.84,0.00014273,2]
[330994862,1719997632272,-560.82,0.00014273,2]
[330994863,1719997632293,-2697.09,0.00014273,2]
[330994864,1719997632314,-500.0,0.00014273,2]
[330994865,1719997632336,-500.0,0.00014273,2]
[330994866,1719997632357,-620.54,0.00014273,2]
[330994867,1719997632378,-500.0,0.00014273,2]
[330994868,1719997632398,-500.0,0.00014273,2]
[330994869,1719997632419,-154.93211081,0.00014273,2]
[330994870,1719997632440,-500.0,0.00014273,2]
[330994871,1719997632463,-593.42,0.00014273,2]
[330994872,1719997632487,-500.0,0.00014273,2]
[330994873,1719997632507,-500.0,0.00014273,2]
[330994874,1719997632530,-500.0,0.00014273,2]
[330994875,1719997632551,-500.0,0.00014274,2]
[330994876,1719997632573,-245.9639303,0.00014274,2]
[330994877,1719997632594,-500.0,0.00014274,2]
[330994878,1719997632614,-500.0,0.00014274,2]
[330994879,1719997632634,-501.0,0.00014274,2]
[330994880,1719997632657,-500.0,0.00014274,2]
[330994881,1719997632678,-626.51,0.00014274,2]
[330994882,1719997632699,-500.0,0.00014274,2]
[330994883,1719997632720,-594.95,0.00014274,2]
[330994884,1719997632741,-500.0,0.00014274,2]
[330994885,1719997632762,-500.0,0.00014274,2]
[330994886,1719997632784,-500.0,0.00014274,2]
[330994887,1719997632804,-500.0,0.00014274,2]
[330994888,1719997632826,-4045.01073635,0.00014274,2]
[330994894,1719997635117,-5132.07926365,0.00014274,2]
[330994896,1719997635137,-500.0,0.00014274,2]
[330994897,1719997635157,-500.0,0.00014274,2]
[330994898,1719997635179,-4715.94,0.00014274,2]
[330994899,1719997635200,-941.37,0.00014274,2]
[330994900,1719997635220,-500.0,0.00014274,2]
[330994901,1719997635240,-1634.6,0.00014274,2]
[330994902,1719997635262,-625.58,0.00014274,2]
[330994903,1719997635283,-909.03,0.00014274,2]
[330994904,1719997635303,-1335.87,0.00014274,2]
[330994905,1719997635324,-514.03560836,0.00014274,2]
[330994906,1719997635346,-4732.25,0.00014274,2]
[330994907,1719997635366,-744.28,0.00014275,2]
[330994908,1719997635385,-500.0,0.00014275,2]
[330994909,1719997635406,-568.72,0.00014275,2]
[330994910,1719997635426,-669.96,0.00014275,2]
[330994911,1719997635445,-154.03322,0.00014275,2]
[330994912,1719997635465,-500.0,0.00014275,2]
[330994913,1719997635492,-500.0,0.00014275,2]
[330994914,1719997635512,-500.0,0.00014275,2]
[330994915,1719997635534,-555.81,0.00014275,2]
[330994916,1719997635554,-790.9,0.00014275,2]
[330994917,1719997635577,-500.0,0.00014275,2]
[330994918,1719997635598,-500.0,0.00014275,2]
[330994919,1719997635617,-8298.11,0.00014275,2]
[330994920,1719997635637,-2912.79,0.00014275,2]
[330994921,1719997635842,-155.749614,0.00014275,2]
[330994922,1719997635868,-506.23773555,0.0001431,2]
[330994923,1719997635888,-506.23773555,0.00014447,2]
[330994924,1719997635909,-500.0,0.00014546,2]
[330994925,1719997635931,-634.78,0.00014546,2]
[330994926,1719997635954,-500.0,0.00014546,2]
[330994927,1719997635976,-1243.43,0.00014546,2]
[330994928,1719997635998,-1399.96,0.00014546,2]
[330994929,1719997636019,-673.4,0.00014546,2]
[330994930,1719997636041,-500.0,0.00014546,2]
[330994931,1719997636062,-500.0,0.00014546,2]
[330994932,1719997636083,-584.29,0.00014546,2]
[330994933,1719997636104,-1762.31,0.00014546,2]
[330994934,1719997636125,-861.72263772,0.00014546,2]
[330994935,1719997638882,4322.94,0.00014,2]
[330994936,1719997642452,505.72,0.00014,2]
[330994937,1719997671927,500.0,0.00014,2]
[330994938,1719997672160,4337.9,0.00014,2]
[330994940,1719997678971,1498.38,0.00014,2]
[330994941,1719997692749,833.27,0.00014,2]
[330994942,1719997698262,682.26,0.00014,2]
[330994943,1719997698870,500.0,0.00014,2]
[330994944,1719997702488,725.0,0.00014,2]
[330994945,1719997702661,495.84780869,0.00014,2]
[330994949,1719997782967,-728.61924314,0.00014,2]
[330994950,1719997783004,-0.08294817,0.00014,2]
[330994951,1719997783034,-500.0,0.00014,2]
[330994952,1719997783063,-228.53629497,0.00014,2]
[330994953,1719997783105,-243.02973759,0.00014,2]
[330994961,1719997807722,-391.35396744,0.00014,2]
[330994962,1719997807756,-371.27064018,0.00014,2]
[330994963,1719997807800,-718.80708764,0.00014,2]
[330994970,1719997832618,-3052.74227218,0.00014,2]
[330994971,1719997832630,-765.27,0.00014,2]
[330994973,1719997832641,-7606.61,0.00014,2]
[330994975,1719997832652,-500.0,0.00014,2]
[330994977,1719997832662,-500.0,0.00014,2]
[330994979,1719997832673,-521.33,0.00014,2]
[330994981,1719997832683,-877.0,0.00014144,2]
[330994983,1719997832694,-500.0,0.00014271,2]
[330994985,1719997832705,-1139.81,0.00014271,2]
[330994987,1719997832716,-5765.72,0.00014271,2]
[330994990,1719997832726,-632.08,0.00014272,2]
[330994992,1719997832737,-537.45,0.00014272,2]
[330994994,1719997832747,-2584.71,0.00014272,2]
[330994996,1719997832758,-500.0,0.00014272,2]
[330994998,1719997832769,-500.0,0.00014272,2]
[330995000,1719997832781,-4656.99,0.00014272,2]
[330995002,1719997832792,-581.88,0.00014272,2]
[330995005,1719997832803,-500.0,0.00014272,2]
[330995007,1719997832814,-1283.29,0.00014272,2]
[330995009,1719997832824,-617.29,0.00014272,2]
[330995011,1719997832833,-535.6,0.00014272,2]
[330995013,1719997832843,-1615.45,0.00014272,2]
[330995015,1719997832852,-500.0,0.00014273,2]
[330995017,1719997832863,-500.0,0.00014273,2]
[330995039,1719997833070,-438.01676797,0.00014273,2]
[330995042,1719997833089,-574.3,0.00014273,2]
[330995044,1719997833100,-567.89028138,0.00014273,2]
[330995046,1719997833110,-545.37,0.00014273,2]
[330995048,1719997833120,-4337.9,0.00014274,2]
[330995050,1719997833130,-1498.38,0.00014274,2]
[330995053,1719997833140,-682.26,0.00014274,2]
[330995054,1719997833149,-500.0,0.00014274,2]
[330995056,1719997833159,-725.0,0.00014274,2]
[330995058,1719997833168,-1224.55,0.00014274,2]
[330995060,1719997833177,-500.0,0.00014274,2]
[330995062,1719997833187,-862.92,0.00014274,2]
[330995064,1719997833197,-4142.82,0.00014274,2]
[330995066,1719997833207,-765.27,0.00014274,2]
[330995068,1719997833217,-7606.61,0.00014274,2]
[330995070,1719997833226,-409.64,0.00014274,2]
[330995072,1719997833236,-500.0,0.00014274,2]
[330995074,1719997833245,-521.33,0.00014274,2]
[330995076,1719997833257,-500.0,0.00014545,2]
[330995078,1719997833266,-1139.81,0.00014545,2]
[330995080,1719997833276,-5765.72,0.00014545,2]
[330995082,1719997833285,-712.88,0.00014546,2]
[330995084,1719997833294,-1323.35,0.00014546,2]
[330995086,1719997833304,-632.08,0.00014546,2]
[330995088,1719997833313,-537.45,0.00014546,2]
[330995090,1719997833322,-2584.71,0.00014546,2]
[330995092,1719997833332,-151.0,0.00014546,2]
[330995094,1719997833341,-500.0,0.00014546,2]
[330995096,1719997833350,-528.28073463,0.00014546,2]
[330995098,1719997833359,-4656.99,0.00014546,2]
[330995100,1719997833368,-581.88,0.00014546,2]
[330995102,1719997833377,-500.0,0.00014546,2]
[330995103,1719997833387,-1283.29,0.00014546,2]
[330995105,1719997833397,-617.29,0.00014546,2]
[330995107,1719997833406,-535.6,0.00014546,2]
[330995108,1719997833415,-1615.45,0.00014546,2]
[330995109,1719997833425,-500.0,0.00014547,2]
[330995110,1719997833435,-644.5,0.00014547,2]
[330995111,1719997833444,-1133.24,0.00014547,2]
[330995112,1719997833454,-580.01,0.00014547,2]
[330995113,1719997833464,-799.84,0.00014547,2]
[330995114,1719997833473,-500.0,0.00014547,2]
[330995115,1719997833487,-620.54,0.00014547,2]
[330995116,1719997833498,-500.0,0.00014547,2]
[330995117,1719997833507,-593.42,0.00014547,2]
[330995118,1719997833517,-500.0,0.00014547,2]
[330995119,1719997833527,-500.0,0.00014547,2]
[330995120,1719997833542,-500.0,0.00014547,2]
[330995121,1719997833552,-500.0,0.00014547,2]
[330995122,1719997833561,-574.3,0.00014547,2]
[330995123,1719997833570,-545.37,0.00014547,2]
[330995124,1719997833584,-671.05,0.00014548,2]
[330995125,1719997833593,-500.0,0.00014548,2]
[330995126,1719997833602,-500.0,0.00014548,2]
[330995127,1719997833612,-500.0,0.00014548,2]
[330995128,1719997833621,-500.0,0.00014548,2]
[330995129,1719997833631,-500.0,0.00014548,2]
[330995130,1719997833640,-500.0,0.00014548,2]
[330995131,1719997833648,-500.0,0.00014548,2]
[330995132,1719997833658,-9177.09,0.00014548,2]
[330995133,1719997833668,-500.0,0.00014548,2]
[330995134,1719997833677,-500.0,0.00014548,2]
[330995135,1719997833687,-573.02893548,0.00014548,2]
[330995136,1719997833696,-593.42,0.00014548,2]
[330995137,1719997833708,-625.58,0.00014548,2]
[330995138,1719997833718,-4337.9,0.00014548,2]
[330995139,1719997833728,-143.89757254,0.00014548,2]
[330995140,1719997833741,-1354.48242746,0.00014548,2]
[330995141,1719997833750,-682.26,0.00014548,2]
[330995142,1719997833759,-725.0,0.00014548,2]
[330995143,1719997833769,-1224.55,0.00014548,2]
[330995144,1719997833778,-500.0,0.00014548,2]
[330995145,1719997833787,-862.92,0.00014548,2]
[330995146,1719997833798,-4142.82,0.00014548,2]
[330995147,1719997833807,-765.27,0.00014548,2]
[330995148,1719997833816,-7606.61,0.00014548,2]
[330995149,1719997833825,-500.0,0.00014548,2]
[330995150,1719997833834,-521.33,0.00014548,2]
[330995151,1719997833844,-500.0,0.00014549,2]
[330995152,1719997833853,-669.96,0.00014549,2]
[330995153,1719997833864,-500.0,0.00014549,2]
[330995154,1719997833874,-500.0,0.00014549,2]
[330995155,1719997833884,-500.0,0.00014549,2]
[330995156,1719997833893,-555.81,0.00014549,2]
[330995157,1719997833902,-370.37559225,0.00014549,2]
[330995158,1719997833912,-500.0,0.00014549,2]
[330995159,1719997833921,-2912.79,0.00014549,2]
[330995160,1719997833930,-506.23773555,0.00014584,2]
[330995161,1719997833939,-506.23773555,0.00014721,2]
[330995162,1719997833949,-593.42,0.00014721,2]
[330995163,1719997833962,-593.42,0.00014721,2]
[330995164,1719997833971,-505.52242464,0.00014722,2]
[330995165,1719997833982,-300.0,0.00014759,2]
[330995166,1719997833991,-188.31976,0.00014767,2]
[330995167,1719997834001,-189.080219,0.00014767,2]
[330995168,1719997834011,-1235.99551094,0.00014794,2]
[330995169,1719997834020,-9134.56291464,0.00014799,2]
[330995170,1719997834029,-5431.76629554,0.00014799,2]
[330995179,1719997838630,-304.70212322,0.00014,2]
[330995462,1719997842556,-195.29787678,0.00014,2]
[330995464,1719997842566,-500.0,0.00014274,2]
[330995466,1719997842579,-500.0,0.00014548,2]
[330995482,1719997842733,-59307.44684321,0.00014799,2]
[330995484,1719997842747,-706.73272783,0.00014799,2]
[330995486,1719997842760,-23442.05413342,0.00014799,2]
[330995488,1719997842770,-500.0,0.00014819,2]
[330995490,1719997842780,-1139.81,0.00014819,2]
[330995492,1719997842790,-5765.72,0.00014819,2]
[330995494,1719997842799,-500.0,0.0001482,2]
[330995496,1719997842811,-712.88,0.0001482,2]
[330995498,1719997842821,-1323.35,0.0001482,2]
[330995500,1719997842831,-632.08,0.0001482,2]
[330995502,1719997842841,-537.45,0.0001482,2]
[330995504,1719997842851,-2584.71,0.0001482,2]
[330995506,1719997842861,-500.0,0.0001482,2]
[330995508,1719997842872,-4656.99,0.0001482,2]
[330995510,1719997842882,-581.88,0.0001482,2]
[330995514,1719997842903,-500.0,0.0001482,2]
[330995515,1719997842916,-1283.29,0.0001482,2]
[330995518,1719997842927,-617.29,0.0001482,2]
[330995520,1719997842938,-535.6,0.0001482,2]
[330995522,1719997842950,-1615.45,0.0001482,2]
[330995524,1719997842961,-644.5,0.00014821,2]
[330995526,1719997842972,-1133.24,0.00014821,2]
[330995528,1719997842982,-580.01,0.00014821,2]
[330995530,1719997842992,-799.84,0.00014821,2]
[330995532,1719997843003,-500.0,0.00014821,2]
[330995534,1719997843014,-620.54,0.00014821,2]
[330995536,1719997843025,-500.0,0.00014821,2]
[330995538,1719997843035,-593.42,0.00014821,2]
[330995540,1719997843046,-500.0,0.00014821,2]
[330995542,1719997843056,-500.0,0.00014821,2]
[330995544,1719997843067,-500.0,0.00014821,2]
[330995546,1719997843076,-500.0,0.00014821,2]
[330995548,1719997843087,-574.3,0.00014821,2]
[330995550,1719997843097,-545.37,0.00014821,2]
[330995553,1719997843108,-368.58485971,0.00014822,2]
[330995555,1719997843120,-500.0,0.00014822,2]
[330995557,1719997843130,-500.0,0.00014822,2]
[330995559,1719997843140,-500.0,0.00014822,2]
[330995561,1719997843150,-500.0,0.00014822,2]
[330995563,1719997843159,-500.0,0.00014822,2]
[330995565,1719997843170,-500.0,0.00014822,2]
[330995567,1719997843181,-9177.09,0.00014822,2]
[330995569,1719997843192,-558.66390196,0.00014822,2]
[330995571,1719997843201,-500.0,0.00014822,2]
[330995573,1719997843213,-593.42,0.00014822,2]
[330995575,1719997843223,-625.58,0.00014822,2]
[330995577,1719997843233,-4337.9,0.00014822,2]
[330995582,1719997843243,-1498.38,0.00014822,2]
[330995587,1719997843256,-682.26,0.00014822,2]
[330995591,1719997843266,-725.0,0.00014822,2]
[330995596,1719997843277,-1224.55,0.00014822,2]
[330995601,1719997843287,-500.0,0.00014822,2]
[330995606,1719997843297,-4142.82,0.00014822,2]
[330995610,1719997843308,-765.27,0.00014822,2]
[330995612,1719997843319,-7606.61,0.00014822,2]
[330995615,1719997843330,-500.0,0.00014822,2]
[330995618,1719997843341,-521.33,0.00014822,2]
[330995621,1719997843351,-500.0,0.00014822,2]
[330995624,1719997843362,-479.75033432,0.00014823,2]
[330996215,1719997847888,-609.03,0.00014,2]
[330996218,1719997847898,-623.77,0.00014271,2]
[330996221,1719997847908,-83.22,0.00014274,2]
[330997720,1719998137514,1286.11472469,9.999e-05,2]
[330997748,1719998338414,1286.11472469,9.999e-05,2]
[330997749,1719998388597,836.73503167,0.0001212,2]
[330997754,1719998803030,268.92743618,9.999e-05,2]
[330997755,1719998846121,-300.0,0.00013999,2]
[330997756,1719998846141,-300.0,0.00013999,2]
[330997757,1719998846162,-521.32,0.00014,2]
[330997758,1719998846182,-604.16,0.00014,2]
[330997759,1719998846201,-6338.84,0.00014,2]
[330997760,1719998846224,-2548.69,0.00014,2]
[330997761,1719998846247,-500.0,0.00014,2]
[330997762,1719998846270,-7647.57,0.00014,2]
[330997763,1719998846291,-150.0,0.00014172,2]
[330997764,1719998846311,-877.0,0.00014172,2]
[330997765,1719998846335,-208.80606455,0.00014172,2]
[330997766,1719998846356,-161.8060428,0.00014173,2]
[330997767,1719998846377,-500.0,0.00014272,2]
[330997768,1719998846398,-500.0,0.00014272,2]
[330997769,1719998846422,-500.0,0.00014272,2]
[330997770,1719998846444,-585.82,0.00014272,2]
[330997771,1719998846466,-1025.43,0.00014272,2]
[330997772,1719998846490,-500.0,0.00014272,2]
[330997773,1719998846523,-3614.91,0.00014272,2]
[330997774,1719998846550,-507.51,0.00014272,2]
[330997775,1719998846572,-500.0,0.00014272,2]
[330997776,1719998846594,-699.86,0.00014272,2]
[330997777,1719998846615,-500.0,0.00014272,2]
[330997778,1719998846638,-671.01,0.00014272,2]
[330997779,1719998846658,-500.0,0.00014272,2]
[330997780,1719998846680,-509.14,0.00014272,2]
[330997781,1719998846701,-580.19,0.00014272,2]
[330997782,1719998846725,-4074.87,0.00014272,2]
[330997783,1719998846747,-1122.88,0.00014272,2]
[330997784,1719998846769,-500.0,0.00014272,2]
[330997785,1719998846791,-500.0,0.00014272,2]
[330997786,1719998846812,-540.12,0.00014272,2]
[330997787,1719998846834,-500.0,0.00014272,2]
[330997788,1719998846861,-831.7,0.00014272,2]
[330997789,1719998846885,-500.0,0.00014272,2]
[330997790,1719998846909,-1413.52,0.00014272,2]
[330997791,1719998846935,-500.0,0.00014272,2]
[330997792,1719998846960,-4270.40538864,0.00014272,2]
[330997793,1719998850935,509.85196753,9.999e-05,2]
[330997794,1719998883297,154.83742071,9.999e-05,2]
[330997795,1719998896401,-500.0,0.00014,2]
[330997887,1719999039680,-1248.65,0.00014,2]
[330997889,1719999039692,-122.75881746,0.00014172,2]
[330997946,1719999040297,-754.24118254,0.00014172,2]
[330997948,1719999040308,-161.80604276,0.00014174,2]
[330997950,1719999040319,-500.0,0.00014271,2]
[330997952,1719999040330,-1015.92,0.00014271,2]
[330997955,1719999040340,-300.0,0.00014271,2]
[330997956,1719999040350,-5154.97,0.00014271,2]
[330997959,1719999040360,-500.0,0.00014272,2]
[330997960,1719999040370,-500.0,0.00014272,2]
[330997962,1719999040381,-542.97,0.00014272,2]
[330997964,1719999040391,-1157.93,0.00014272,2]
[330997967,1719999040402,-553.07,0.00014272,2]
[330997969,1719999040412,-500.0,0.00014272,2]
[330997970,1719999040422,-2261.62,0.00014272,2]
[330997973,1719999040432,-502.52,0.00014272,2]
[330997976,1719999040443,-556.01,0.00014272,2]
[330997980,1719999040453,-500.0,0.00014272,2]
[330997983,1719999040463,-500.0,0.00014272,2]
[330997986,1719999040476,-500.0,0.00014272,2]
[330997989,1719999040487,-500.0,0.00014272,2]
[330997992,1719999040497,-500.0,0.00014272,2]
[330997995,1719999040508,-500.0,0.00014272,2]
[330997998,1719999040518,-1076.09,0.00014272,2]
[330998001,1719999040528,-517.62,0.00014272,2]
[330998004,1719999040538,-500.0,0.00014272,2]
[330998006,1719999040549,-729.20935344,0.00014272,2]
[330998009,1719999040574,-625.41064656,0.00014272,2]
[330998012,1719999040585,-500.0,0.00014273,2]
[330998014,1719999040595,-500.0,0.00014273,2]
[330998016,1719999040604,-500.0,0.00014273,2]
[330998018,1719999040615,-156.70275098,0.00014273,2]
[330998020,1719999040624,-500.0,0.00014273,2]
[330998021,1719999040635,-500.0,0.00014273,2]
[330998023,1719999040645,-500.0,0.00014273,2]
[330998026,1719999040656,-500.0,0.00014273,2]
[330998028,1719999040666,-500.0,0.00014273,2]
[330998030,1719999040676,-500.0,0.00014273,2]
[330998031,1719999040686,-500.0,0.00014273,2]
[330998034,1719999040696,-3316.73660246,0.00014273,2]
[330999557,1719999057971,508.831518,9.999e-05,2]
[330999720,1719999081030,383.3799279,9.999e-05,2]
[330999721,1719999157139,154.83742071,9.999e-05,2]
[330999733,1719999246740,-1196.63,0.00014,2]
[330999734,1719999246774,-1020.46,0.00014,2]
[330999735,1719999246811,-3452.35,0.00014,2]
[330999743,1719999327124,-755.06,0.00014,2]
[330999746,1719999351941,500.0,0.00014,2]
[330999752,1719999405064,6074.72,0.00014,2]
[330999760,1719999451653,578.99,0.00014,2]
[330999761,1719999458374,2442.5,0.00014,2]
[330999762,1719999479873,554.86,0.00014,2]
[330999764,1719999501689,5579.04,0.00014,2]
[330999766,1719999554732,5589.15,0.00014,2]
[330999769,1719999615003,2340.73,0.00014,2]
[330999774,1719999892726,525.08585216,9.999e-05,2]
[330999775,1719999897511,509.97923553,9.999e-05,2]
[330999776,1719999941261,525.09240019,0.0001212,2]
[330999777,1719999943519,262.75743915,0.0001212,2]
[330999778,1719999969322,154.83742071,9.999e-05,2]
[330999780,1720000016714,273.52697028,0.0001212,2]
[330999960,1720000239650,-477.28935736,0.00014028,2]
[330999962,1720000239659,-161.80604276,0.00014173,2]
[330999964,1720000239669,-877.0,0.00014197,2]
[330999966,1720000239679,-150.0,0.00014197,2]
[330999968,1720000239688,-300.0,0.0001427,2]
[330999970,1720000239698,-500.0,0.00014271,2]
[330999972,1720000239708,-500.0,0.00014271,2]
[330999974,1720000239717,-500.0,0.00014271,2]
[330999976,1720000239727,-552.25719852,0.00014271,2]
[330999978,1720000239736,-500.0,0.00014271,2]
[330999980,1720000239745,-500.0,0.00014271,2]
[330999982,1720000239755,-500.0,0.00014271,2]
[330999983,1720000239766,-499.99999999,0.00014271,2]
[330999985,1720000239776,-3326.09,0.00014272,2]
[330999988,1720000239787,-500.0,0.00014272,2]